[Event "Elitserien 2019/2020, round 7-9"]
[Site "Elite stadshotellet, Kungsgatan 6, Vaxjo, Sweden"]
[Date "2020.10.18"]
[Round "3.12"]
[White "Rydstrom, Tom"]
[Black "Lokander, Martin"]
[Result "0-1"]
[TimeControl "90 minutes for 40 moves + 30 minutes for the rest of the game + 30 seconds per move from move one."]
[WhiteTitle "FM"]
[BlackTitle "IM"]
[WhiteFideId "1714830"]
[BlackFideId "1709569"]
[WhiteElo "2248"]
[BlackElo "2399"]

1. e4 {[%clk 01:30:58]} e5 {[%clk 01:30:52]} {[%emt 00:00:09]} 2. Nf3 {[%clk
01:31:21]} {[%emt 00:00:07]} Nc6 {[%clk 01:31:16]} {[%emt 00:00:05]} 3. Bc4
{[%clk 01:31:43]} {[%emt 00:00:09]} Bc5 {[%clk 01:30:45]} {[%emt 00:01:02]} 4.
d3 {[%clk 01:31:46]} {[%emt 00:00:27]} Nf6 {[%clk 01:30:56]} {[%emt 00:00:19]}
5. Nbd2 {[%clk 01:32:01]} {[%emt 00:00:14]} d6 {[%clk 01:30:50]} {[%emt
00:00:35]} 6. c3 {[%clk 01:32:25]} {[%emt 00:00:06]} a6 {[%clk 01:30:45]}
{[%emt 00:00:36]} 7. Bb3 {[%clk 01:32:46]} {[%emt 00:00:09]} Ba7 {[%clk
01:30:41]} {[%emt 00:00:34]} 8. Nf1 {[%clk 01:32:37]} {[%emt 00:00:39]} Ne7
{[%clk 01:24:15]} {[%emt 00:06:56]} 9. Ng3 {[%clk 01:32:53]} {[%emt 00:00:15]}
Ng6 {[%clk 01:24:25]} {[%emt 00:00:20]} 10. O-O {[%clk 01:31:56]} {[%emt
00:01:27]} O-O {[%clk 01:24:04]} {[%emt 00:00:51]} 11. Re1 {[%clk 01:30:17]}
{[%emt 00:02:09]} c6 {[%clk 01:15:44]} {[%emt 00:08:50]} 12. h3 {[%clk
01:30:26]} {[%emt 00:00:21]} h6 {[%clk 01:12:33]} {[%emt 00:03:41]} 13. d4
{[%clk 01:30:40]} {[%emt 00:00:17]} Qc7 {[%clk 01:12:02]} {[%emt 00:01:01]} 14.
dxe5 {[%clk 01:08:29]} {[%emt 00:22:41]} dxe5 {[%clk 01:11:15]} {[%emt
00:01:17]} 15. Be3 {[%clk 01:08:35]} {[%emt 00:00:23]} Bxe3 {[%clk 01:11:21]}
{[%emt 00:00:24]} 16. fxe3 {[%clk 01:07:58]} {[%emt 00:01:06]} Bd7 {[%clk
01:06:29]} {[%emt 00:05:23]} 17. Rf1 {[%clk 01:03:03]} {[%emt 00:05:25]} c5
{[%clk 01:00:15]} {[%emt 00:06:44]} 18. Nd2 {[%clk 00:58:22]} {[%emt 00:05:11]}
Qc6 {[%clk 00:54:23]} {[%emt 00:06:22]} 19. Nh5 {[%clk 00:51:24]} {[%emt
00:07:28]} Nxh5 {[%clk 00:27:45]} {[%emt 00:27:08]} 20. Bd5 {[%clk 00:49:37]}
{[%emt 00:02:17]} Qd6 {[%clk 00:19:36]} {[%emt 00:08:39]} 21. Qxh5 {[%clk
00:39:59]} {[%emt 00:10:07]} Bc6 {[%clk 00:17:44]} {[%emt 00:02:22]} 22. Nc4
{[%clk 00:35:27]} {[%emt 00:05:02]} Qe7 {[%clk 00:17:56]} {[%emt 00:00:19]} 23.
Rf5 {[%clk 00:19:44]} {[%emt 00:16:13]} Bxd5 {[%clk 00:13:29]} {[%emt
00:04:57]} 24. exd5 {[%clk 00:19:56]} {[%emt 00:00:18]} Rae8 {[%clk 00:12:57]}
{[%emt 00:01:02]} 25. Rd1 {[%clk 00:07:12]} {[%emt 00:13:14]} b5 {[%clk
00:10:00]} {[%emt 00:03:27]} 26. d6 {[%clk 00:05:09]} {[%emt 00:02:32]} Qe6
{[%clk 00:10:28]} {[%emt 00:00:02]} 27. d7 {[%clk 00:05:12]} {[%emt 00:00:27]}
Rd8 {[%clk 00:10:34]} {[%emt 00:00:24]} 28. Nxe5 {[%clk 00:02:08]} {[%emt
00:03:34]} Ne7 {[%clk 00:10:43]} {[%emt 00:00:21]} 29. Rf2 {[%clk 00:00:41]}
{[%emt 00:01:57]} g6 {[%clk 00:11:00]} {[%emt 00:00:13]} 30. Nxg6 {[%clk
00:00:57]} {[%emt 00:00:14]} Nxg6 {[%clk 00:10:43]} {[%emt 00:00:47]} 31. Qxh6
{[%clk 00:00:54]} {[%emt 00:00:33]} Rxd7 {[%clk 00:10:44]} {[%emt 00:00:29]} 32.
Rxd7 {[%clk 00:00:37]} {[%emt 00:00:46]} Qxd7 {[%clk 00:11:09]} {[%emt
00:00:05]} 33. h4 {[%clk 00:00:59]} {[%emt 00:00:08]} Qd1+ {[%clk 00:10:41]}
{[%emt 00:00:58]} 34. Rf1 {[%clk 00:00:42]} {[%emt 00:00:47]} Qg4 {[%clk
00:10:09]} {[%emt 00:01:02]} 35. h5 {[%clk 00:00:42]} {[%emt 00:00:31]} Nh4
{[%clk 00:09:30]} {[%emt 00:01:10]} 36. Rf2 {[%clk 00:01:11]} Rd8 {[%clk
00:09:03]} {[%emt 00:00:57]} 37. Qf4 {[%clk 00:00:33]} {[%emt 00:01:07]} Rd1+
{[%clk 00:09:09]} {[%emt 00:00:24]} 38. Kh2 {[%emt 00:00:11]} Qxh5 {[%clk
00:09:19]} {[%emt 00:00:10]} 39. Kg3 {[%clk 00:01:09]} {[%emt 00:00:22]} Qg6+
{[%clk 00:08:48]} {[%emt 00:01:02]} 40. Kh2 {[%clk 00:01:38]} Qd6 {[%clk
00:06:46]} {[%emt 00:02:33]} 41. Qxd6 {[%clk 00:26:22]} {[%emt 00:05:47]} Rxd6
{[%clk 00:37:00]} {[%emt 00:00:16]} 42. Kg3 {[%clk 00:26:51]} Ng6 {[%clk
00:37:21]} {[%emt 00:00:09]} 43. Rf5 {[%clk 00:26:58]} {[%emt 00:00:23]} Rc6
{[%clk 00:33:52]} {[%emt 00:03:59]} 44. Kf2 {[%clk 00:26:27]} {[%emt 00:01:01]}
f6 {[%clk 00:33:32]} {[%emt 00:00:50]} 45. g4 {[%clk 00:26:25]} {[%emt
00:00:32]} Ne7 {[%clk 00:33:30]} {[%emt 00:00:33]} 46. Rh5 {[%clk 00:26:22]}
{[%emt 00:00:33]} Kf7 {[%clk 00:33:41]} {[%emt 00:00:20]} 47. Kf3 {[%clk
00:25:13]} {[%emt 00:01:39]} Kg6 {[%clk 00:32:20]} {[%emt 00:01:50]} 48. Rh8
{[%clk 00:25:06]} {[%emt 00:00:37]} Rc8 {[%clk 00:32:15]} {[%emt 00:00:36]} 49.
Rh1 {[%clk 00:24:39]} {[%emt 00:00:56]} Rd8 {[%clk 00:32:24]} {[%emt 00:00:21]}
50. Ke2 {[%clk 00:19:27]} {[%emt 00:05:41]} Nc6 {[%clk 00:32:34]} {[%emt
00:00:20]} 51. a4 {[%clk 00:19:29]} {[%emt 00:00:29]} Na5 {[%clk 00:30:33]}
{[%emt 00:05:01]} 52. axb5 axb5 {[%clk 00:30:59]} 53. Rh5 {[%clk 00:20:16]} Nb3
{[%clk 00:31:12]} 54. Ke1 {[%clk 00:20:27]} Rd3 {[%clk 00:31:21]} 0-1

[Event "Elitserien 2019/2020, round 7-9"]
[Site "Elite stadshotellet, Kungsgatan 6, Vaxjo, Sweden"]
[Date "2020.10.18"]
[Round "3.13"]
[White "Arman, Deniz"]
[Black "Alle Wahlin, Ambjorn"]
[Result "1/2-1/2"]
[TimeControl "90 minutes for 40 moves + 30 minutes for the rest of the game + 30 seconds per move from move one."]
[WhiteTitle "FM"]
[WhiteFideId "6302106"]
[BlackFideId "1714805"]
[WhiteElo "2318"]
[BlackElo "2257"]

1. e4 {[%clk 01:30:52]} {[%emt 00:00:07]} g6 {[%clk 01:30:16]} {[%emt
00:00:45]} 2. d4 {[%clk 01:31:03]} {[%emt 00:00:19]} Bg7 {[%clk 01:30:40]}
{[%emt 00:00:05]} 3. Nf3 {[%clk 01:30:26]} {[%emt 00:01:08]} d6 {[%clk
01:30:34]} {[%emt 00:00:36]} 4. Bd3 {[%clk 01:26:04]} {[%emt 00:04:52]} Nf6
{[%clk 01:30:16]} {[%emt 00:00:48]} 5. O-O {[%clk 01:26:05]} {[%emt 00:00:29]}
O-O {[%clk 01:30:22]} {[%emt 00:00:21]} 6. c3 {[%clk 01:21:06]} {[%emt
00:05:31]} Nbd7 {[%clk 01:30:18]} {[%emt 00:00:34]} 7. Nbd2 {[%clk 01:11:18]}
{[%emt 00:10:16]} e5 {[%clk 01:30:11]} {[%emt 00:00:39]} 8. Re1 {[%clk
01:11:16]} {[%emt 00:00:32]} b6 {[%clk 01:26:16]} {[%emt 00:04:24]} 9. Nf1
{[%clk 00:52:26]} {[%emt 00:19:21]} Bb7 {[%clk 01:24:26]} {[%emt 00:02:20]} 10.
Ng3 {[%clk 00:51:40]} {[%emt 00:01:17]} Re8 {[%clk 01:22:35]} {[%emt 00:02:20]}
11. a4 {[%clk 00:49:59]} {[%emt 00:02:11]} d5 {[%clk 01:06:36]} {[%emt
00:16:29]} 12. Bg5 {[%clk 00:30:02]} {[%emt 00:20:26]} h6 {[%clk 00:37:36]}
{[%emt 00:29:31]} 13. Bxf6 {[%clk 00:29:34]} {[%emt 00:00:58]} Bxf6 {[%clk
00:35:34]} {[%emt 00:02:31]} 14. exd5 {[%clk 00:27:34]} {[%emt 00:02:30]} exd4
{[%clk 00:35:10]} {[%emt 00:00:54]} 15. cxd4 {[%clk 00:25:09]} {[%emt
00:02:54]} Bxd5 {[%clk 00:31:26]} {[%emt 00:04:14]} 16. Be4 {[%clk 00:24:29]}
{[%emt 00:01:10]} Nf8 {[%clk 00:28:14]} {[%emt 00:03:41]} 17. Qd3 {[%clk
00:12:45]} {[%emt 00:12:14]} Bg7 {[%clk 00:17:05]} {[%emt 00:11:39]} 18. h4
{[%clk 00:06:55]} {[%emt 00:06:21]} h5 {[%clk 00:14:28]} {[%emt 00:03:07]} 19.
Rad1 {[%clk 00:06:10]} {[%emt 00:01:15]} Qd6 {[%clk 00:14:12]} {[%emt
00:00:46]} 20. Ng5 {[%clk 00:04:12]} {[%emt 00:02:28]} Bxe4 {[%clk 00:13:30]}
{[%emt 00:01:13]} 21. N3xe4 {[%clk 00:04:28]} {[%emt 00:00:14]} Qd7 {[%clk
00:07:54]} {[%emt 00:06:05]} 22. b3 {[%clk 00:04:02]} {[%emt 00:00:56]} Ne6
{[%clk 00:06:51]} {[%emt 00:01:33]} 23. d5 {[%clk 00:04:26]} {[%emt 00:00:06]}
Nc5 24. Nxc5 {[%clk 00:02:51]} Rxe1+ {[%clk 00:04:23]} {[%emt 00:00:08]} 25.
Rxe1 {[%clk 00:03:15]} {[%emt 00:00:06]} bxc5 {[%clk 00:04:47]} {[%emt
00:00:05]} 26. Qc4 {[%clk 00:02:01]} {[%emt 00:01:44]} Bd4 {[%clk 00:01:41]}
{[%emt 00:03:36]} 27. Nf3 {[%clk 00:01:41]} {[%emt 00:00:51]} Qg4 {[%clk
00:01:39]} {[%emt 00:00:33]} 28. Nxd4 {[%clk 00:00:38]} {[%emt 00:01:33]} Qxd4
{[%clk 00:01:40]} {[%emt 00:00:29]} 29. Qxd4 {[%clk 00:00:59]} {[%emt
00:00:10]} cxd4 {[%clk 00:02:04]} {[%emt 00:00:06]} 30. Rd1 {[%clk 00:01:12]}
{[%emt 00:00:16]} Rb8 {[%clk 00:02:24]} {[%emt 00:00:09]} 31. Rxd4 {[%clk
00:01:33]} {[%emt 00:00:10]} Rxb3 {[%clk 00:02:48]} {[%emt 00:00:07]} 32. Rc4
{[%clk 00:01:29]} {[%emt 00:00:33]} Rb1+ {[%clk 00:02:35]} {[%emt 00:00:43]} 33.
Kh2 {[%clk 00:01:55]} {[%emt 00:00:04]} Ra1 {[%clk 00:02:59]} {[%emt 00:00:05]}
34. Rxc7 {[%clk 00:02:09]} {[%emt 00:00:17]} Rxa4 {[%clk 00:03:25]} {[%emt
00:00:04]} 35. g3 {[%clk 00:02:20]} {[%emt 00:00:19]} a5 {[%clk 00:03:39]}
1/2-1/2

[Event "Elitserien 2019/2020, round 7-9"]
[Site "Elite stadshotellet, Kungsgatan 6, Vaxjo, Sweden"]
[Date "2020.10.18"]
[Round "3.14"]
[White "Lundstedt, Peter"]
[Black "Ertan, Can"]
[Result "1/2-1/2"]
[TimeControl "90 minutes for 40 moves + 30 minutes for the rest of the game + 30 seconds per move from move one."]
[BlackTitle "IM"]
[WhiteFideId "1718444"]
[BlackFideId "6306330"]
[WhiteElo "2088"]
[BlackElo "2387"]

1. d4 {[%clk 01:30:57]} {[%emt 00:00:02]} Nf6 {[%clk 01:28:17]} {[%emt
00:02:43]} 2. Nf3 {[%clk 01:31:19]} {[%emt 00:00:08]} e6 {[%clk 01:28:42]}
{[%emt 00:00:06]} 3. g3 {[%clk 01:31:41]} {[%emt 00:00:07]} b5 {[%clk
01:28:34]} {[%emt 00:00:39]} 4. Bg2 {[%clk 01:31:44]} {[%emt 00:00:27]} Bb7
{[%clk 01:28:59]} {[%emt 00:00:05]} 5. O-O {[%clk 01:31:57]} {[%emt 00:00:16]}
c5 {[%clk 01:29:09]} {[%emt 00:00:21]} 6. Bg5 {[%clk 01:30:49]} {[%emt
00:01:38]} h6 {[%clk 01:27:59]} {[%emt 00:01:40]} 7. Bxf6 {[%clk 01:29:51]}
{[%emt 00:01:28]} Qxf6 {[%clk 01:28:24]} {[%emt 00:00:05]} 8. Nc3 {[%clk
01:26:21]} {[%emt 00:04:00]} a6 {[%clk 01:28:43]} {[%emt 00:00:11]} 9. e4
{[%clk 01:23:26]} {[%emt 00:03:24]} b4 {[%clk 01:27:15]} {[%emt 00:01:58]} 10.
e5 {[%clk 01:22:40]} {[%emt 00:01:16]} Qd8 {[%clk 01:27:39]} {[%emt 00:00:05]}
11. Na4 {[%clk 01:20:35]} {[%emt 00:02:36]} cxd4 {[%clk 01:27:58]} {[%emt
00:00:11]} 12. Qxd4 {[%clk 01:20:45]} {[%emt 00:00:20]} d5 {[%clk 01:08:23]}
{[%emt 00:20:04]} 13. exd6 {[%clk 01:16:56]} {[%emt 00:04:19]} Qxd6 {[%clk
01:08:39]} {[%emt 00:00:15]} 14. Qe3 {[%clk 01:08:04]} {[%emt 00:09:23]} Qc7
{[%clk 01:04:50]} {[%emt 00:04:18]} 15. Rfd1 {[%clk 01:04:59]} {[%emt
00:03:35]} Nd7 {[%clk 00:59:18]} {[%emt 00:06:02]} 16. c3 {[%clk 00:45:13]}
{[%emt 00:20:16]} Nc5 {[%clk 00:46:08]} {[%emt 00:13:40]} 17. Nxc5 {[%clk
00:35:54]} {[%emt 00:09:49]} Bxc5 {[%clk 00:46:33]} {[%emt 00:00:04]} 18. Qe1
{[%clk 00:34:59]} {[%emt 00:01:25]} Qa5 {[%clk 00:39:13]} {[%emt 00:07:50]} 19.
cxb4 {[%clk 00:34:10]} {[%emt 00:01:19]} Bxb4 {[%clk 00:39:23]} {[%emt
00:00:20]} 20. Qe5 {[%clk 00:32:47]} {[%emt 00:01:53]} O-O {[%clk 00:38:57]}
{[%emt 00:00:57]} 21. Qxa5 {[%clk 00:30:50]} {[%emt 00:02:27]} Bxa5 {[%clk
00:39:24]} {[%emt 00:00:04]} 22. Ne5 {[%clk 00:31:08]} {[%emt 00:00:11]} Bxg2
{[%clk 00:38:22]} {[%emt 00:01:31]} 23. Kxg2 {[%clk 00:31:32]} {[%emt
00:00:07]} Rac8 {[%clk 00:37:15]} {[%emt 00:01:36]} 24. Rac1 {[%clk 00:29:07]}
{[%emt 00:02:57]} Rc7 {[%clk 00:31:15]} {[%emt 00:06:29]} 25. Nc6 {[%clk
00:23:04]} {[%emt 00:06:33]} Bb6 {[%clk 00:31:35]} {[%emt 00:00:10]} 26. b4
{[%clk 00:23:26]} {[%emt 00:00:09]} Kh7 {[%clk 00:30:20]} {[%emt 00:01:44]} 27.
Ne5 {[%clk 00:22:37]} {[%emt 00:01:19]} Rxc1 {[%clk 00:29:00]} {[%emt
00:01:51]} 28. Rxc1 {[%clk 00:21:15]} {[%emt 00:01:52]} Bd4 {[%clk 00:29:23]}
{[%emt 00:00:07]} 29. Nd7 {[%clk 00:18:42]} {[%emt 00:03:02]} Ra8 {[%clk
00:25:54]} {[%emt 00:04:00]} 30. Rc4 {[%clk 00:17:19]} {[%emt 00:01:53]} e5
{[%clk 00:26:18]} {[%emt 00:00:06]} 31. Rc7 {[%clk 00:17:36]} {[%emt 00:00:14]}
Kg6 {[%clk 00:26:04]} {[%emt 00:00:43]} 32. Nc5 {[%clk 00:17:21]} {[%emt
00:00:44]} Bxc5 {[%clk 00:22:06]} {[%emt 00:04:29]} 33. Rxc5 {[%clk 00:17:27]}
{[%emt 00:00:24]} Kf5 {[%clk 00:20:54]} {[%emt 00:01:41]} 34. Kf3 {[%clk
00:13:43]} {[%emt 00:04:15]} h5 {[%clk 00:19:50]} {[%emt 00:01:34]} 35. h3
{[%clk 00:14:01]} {[%emt 00:00:12]} Ke6 {[%clk 00:18:44]} {[%emt 00:01:36]} 36.
Ra5 {[%clk 00:13:45]} {[%emt 00:00:47]} Rc8 {[%clk 00:13:45]} {[%emt 00:05:28]}
37. Rxa6+ {[%clk 00:14:03]} {[%emt 00:00:12]} Kd5 {[%clk 00:14:11]} {[%emt
00:00:05]} 38. Ra5+ {[%clk 00:11:28]} {[%emt 00:03:04]} Kd4 {[%clk 00:14:32]}
{[%emt 00:00:09]} 39. Rc5 {[%clk 00:06:15]} {[%emt 00:05:43]} Ra8 {[%clk
00:14:07]} {[%emt 00:00:56]} 40. Rc2 {[%clk 00:05:49]} {[%emt 00:00:55]} Ra3+
{[%clk 00:13:45]} {[%emt 00:00:52]} 41. Ke2 {[%clk 00:05:05]} {[%emt 00:01:14]}
Ra4 {[%clk 00:13:32]} {[%emt 00:00:43]} 42. Rd2+ {[%clk 00:01:49]} {[%emt
00:03:47]} Kc4 {[%clk 00:12:19]} {[%emt 00:01:42]} 43. Rd7 {[%clk 00:02:07]}
{[%emt 00:00:11]} Rxa2+ {[%clk 00:11:06]} {[%emt 00:01:44]} 44. Ke3 {[%clk
00:02:28]} {[%emt 00:00:09]} f5 {[%clk 00:04:20]} {[%emt 00:07:16]} 45. Rxg7
{[%clk 00:01:46]} {[%emt 00:01:12]} Kxb4 {[%clk 00:04:23]} {[%emt 00:00:27]} 46.
Rg5 {[%clk 00:00:39]} {[%emt 00:01:37]} Ra3+ {[%clk 00:04:49]} {[%emt
00:00:04]} 47. Ke2 {[%clk 00:00:58]} {[%emt 00:00:11]} f4 {[%clk 00:05:15]}
{[%emt 00:00:04]} 48. gxf4 {[%clk 00:28:36]} {[%emt 00:02:53]} exf4 {[%clk
00:35:20]} {[%emt 00:00:25]} 49. Rxh5 {[%clk 00:28:29]} {[%emt 00:00:37]} f3+
{[%clk 00:35:45]} {[%emt 00:00:05]} 50. Kd2 {[%clk 00:28:48]} {[%emt 00:00:11]}
Kc4 {[%clk 00:36:00]} {[%emt 00:00:14]} 51. Rh4+ {[%clk 00:27:21]} {[%emt
00:01:57]} Kc5 {[%clk 00:33:05]} {[%emt 00:03:25]} 52. Re4 {[%clk 00:25:03]}
{[%emt 00:02:49]} Kd5 {[%clk 00:33:20]} {[%emt 00:00:16]} 53. Rb4 {[%clk
00:22:25]} {[%emt 00:03:08]} Kc5 {[%clk 00:33:43]} {[%emt 00:00:06]} 54. Rg4
{[%clk 00:22:35]} {[%emt 00:00:20]} Kd5 {[%clk 00:34:08]} {[%emt 00:00:05]} 55.
h4 {[%clk 00:16:28]} {[%emt 00:06:37]} Ke5 {[%clk 00:32:00]} {[%emt 00:02:38]}
56. h5 {[%clk 00:16:04]} {[%emt 00:00:54]} Ra2+ {[%clk 00:32:21]} {[%emt
00:00:09]} 57. Ke3 {[%clk 00:16:06]} {[%emt 00:00:28]} Ra3+ {[%clk 00:32:48]}
{[%emt 00:00:04]} 1/2-1/2

[Event "Elitserien 2019/2020, round 7-9"]
[Site "Elite stadshotellet, Kungsgatan 6, Vaxjo, Sweden"]
[Date "2020.10.18"]
[Round "3.15"]
[White "Kassani, Sam"]
[Black "Olofsson-Dolk, Mattis"]
[Result "1-0"]
[TimeControl "90 minutes for 40 moves + 30 minutes for the rest of the game + 30 seconds per move from move one."]
[WhiteFideId "1709089"]
[BlackFideId "1715178"]
[WhiteElo "2226"]
[BlackElo "2218"]

1. d4 {[%clk 01:30:31]} {[%emt 00:00:28]} Nf6 {[%clk 01:30:50]} {[%emt
00:00:09]} 2. Bf4 {[%clk 01:30:51]} {[%emt 00:00:11]} g6 {[%clk 01:30:50]}
{[%emt 00:00:31]} 3. e3 {[%clk 01:31:03]} {[%emt 00:00:18]} Bg7 {[%clk
01:30:56]} {[%emt 00:00:24]} 4. Nf3 {[%clk 01:31:12]} {[%emt 00:00:21]} O-O
{[%clk 01:30:33]} {[%emt 00:00:52]} 5. Be2 {[%clk 01:31:29]} {[%emt 00:00:14]}
d6 {[%clk 01:30:47]} {[%emt 00:00:16]} 6. h3 {[%clk 01:30:23]} {[%emt
00:01:37]} c5 {[%clk 01:28:40]} {[%emt 00:02:35]} 7. c3 {[%clk 01:30:36]}
{[%emt 00:00:17]} b6 {[%clk 01:28:17]} {[%emt 00:00:53]} 8. O-O {[%clk
01:31:02]} {[%emt 00:00:05]} Bb7 {[%clk 01:27:56]} {[%emt 00:00:50]} 9. Nbd2
{[%clk 01:31:21]} {[%emt 00:00:12]} Nbd7 {[%clk 01:27:25]} {[%emt 00:01:00]} 10.
Re1 {[%clk 01:31:10]} {[%emt 00:00:42]} Rc8 {[%clk 01:24:04]} {[%emt 00:03:51]}
11. Bf1 {[%clk 01:22:05]} {[%emt 00:09:35]} Rc7 {[%clk 01:16:02]} {[%emt
00:08:32]} 12. a4 {[%clk 01:22:13]} {[%emt 00:00:22]} a6 {[%clk 01:15:19]}
{[%emt 00:01:12]} 13. Bh2 {[%clk 01:15:26]} {[%emt 00:07:17]} Qa8 {[%clk
01:14:21]} {[%emt 00:01:28]} 14. Qb3 {[%clk 01:15:28]} {[%emt 00:00:28]} h6
{[%clk 00:58:29]} {[%emt 00:16:23]} 15. Rad1 {[%clk 00:59:38]} {[%emt
00:16:17]} Rcc8 {[%clk 00:53:26]} {[%emt 00:05:34]} 16. Qa2 {[%clk 00:52:03]}
{[%emt 00:08:06]} Bc6 {[%clk 00:43:28]} {[%emt 00:10:29]} 17. Nh4 {[%clk
00:46:06]} {[%emt 00:06:26]} Kh7 {[%clk 00:41:50]} {[%emt 00:02:09]} 18. c4
{[%clk 00:46:30]} {[%emt 00:00:06]} d5 {[%clk 00:38:43]} {[%emt 00:03:37]} 19.
e4 {[%clk 00:39:30]} {[%emt 00:07:30]} Nxe4 {[%clk 00:33:47]} {[%emt 00:05:27]}
20. Nxe4 {[%clk 00:39:27]} {[%emt 00:00:32]} dxe4 {[%clk 00:33:55]} {[%emt
00:00:23]} 21. d5 {[%clk 00:39:46]} {[%emt 00:00:10]} Bb7 {[%clk 00:34:21]}
{[%emt 00:00:04]} 22. Rxe4 {[%clk 00:39:08]} {[%emt 00:01:09]} e6 {[%clk
00:29:33]} {[%emt 00:05:19]} 23. Ree1 {[%clk 00:30:55]} {[%emt 00:08:43]} exd5
{[%clk 00:28:42]} {[%emt 00:01:20]} 24. cxd5 {[%clk 00:31:17]} {[%emt
00:00:08]} Bd4 {[%clk 00:21:16]} {[%emt 00:07:57]} 25. Re7 {[%clk 00:15:40]}
{[%emt 00:16:07]} Bf6 {[%clk 00:07:06]} {[%emt 00:14:40]} 26. Rxd7 {[%clk
00:12:41]} {[%emt 00:03:29]} Bxh4 {[%clk 00:07:33]} {[%emt 00:00:02]} 27. d6
{[%clk 00:12:59]} {[%emt 00:00:13]} c4 {[%clk 00:05:50]} {[%emt 00:02:13]} 28.
g3 {[%clk 00:04:28]} {[%emt 00:09:00]} Bf6 {[%clk 00:05:49]} {[%emt 00:00:32]}
29. Bxc4 {[%clk 00:03:46]} {[%emt 00:01:12]} Bc6 {[%clk 00:01:16]} {[%emt
00:05:03]} 30. Rc7 {[%clk 00:03:24]} {[%emt 00:00:52]} Rxc7 {[%clk 00:00:40]}
{[%emt 00:01:05]} 31. dxc7 {[%clk 00:03:52]} {[%emt 00:00:02]} Be5 {[%clk
00:00:41]} {[%emt 00:00:30]} 32. Bxf7 {[%clk 00:02:48]} {[%emt 00:01:34]} Bxc7
{[%clk 00:01:10]} {[%emt 00:00:01]} 33. Qe6 {[%clk 00:02:54]} {[%emt 00:00:23]}
Be4 {[%clk 00:00:40]} {[%emt 00:00:59]} 34. Rd7 {[%clk 00:03:18]} {[%emt
00:00:05]} Rd8 {[%clk 00:00:33]} {[%emt 00:00:39]} 35. Bxg6+ {[%clk 00:03:29]}
{[%emt 00:00:18]} 1-0

[Event "Elitserien 2019/2020, round 7-9"]
[Site "Elite stadshotellet, Kungsgatan 6, Vaxjo, Sweden"]
[Date "2020.10.18"]
[Round "3.16"]
[White "Lindahl, Emil"]
[Black "Olund, Joar"]
[Result "0-1"]
[TimeControl "90 minutes for 40 moves + 30 minutes for the rest of the game + 30 seconds per move from move one."]
[BlackTitle "FM"]
[WhiteFideId "1713116"]
[BlackFideId "1714848"]
[WhiteElo "2179"]
[BlackElo "2322"]

1. d4 {[%clk 01:30:59]} d5 {[%clk 01:24:04]} {[%emt 00:06:56]} 2. c4 {[%clk
01:30:57]} {[%emt 00:00:32]} dxc4 {[%clk 01:24:28]} {[%emt 00:00:06]} 3. Nc3
{[%clk 01:30:04]} {[%emt 00:01:22]} Nf6 {[%clk 01:23:25]} {[%emt 00:01:33]} 4.
e3 {[%clk 01:28:55]} {[%emt 00:01:40]} e6 {[%clk 01:22:36]} {[%emt 00:01:19]} 5.
Bxc4 {[%clk 01:28:48]} {[%emt 00:00:37]} c5 {[%clk 01:15:43]} {[%emt 00:07:23]}
6. Nf3 {[%clk 01:28:51]} {[%emt 00:00:27]} a6 {[%clk 01:12:39]} {[%emt
00:03:34]} 7. a4 {[%clk 01:22:10]} {[%emt 00:07:12]} Nc6 {[%clk 01:11:12]}
{[%emt 00:01:57]} 8. O-O {[%clk 01:20:39]} {[%emt 00:02:00]} Be7 {[%clk
01:10:07]} {[%emt 00:01:35]} 9. b3 {[%clk 00:56:27]} {[%emt 00:24:43]} O-O
{[%clk 01:08:13]} {[%emt 00:02:24]} 10. Bb2 {[%clk 00:51:25]} {[%emt 00:05:32]}
cxd4 {[%clk 01:02:52]} {[%emt 00:05:51]} 11. exd4 {[%clk 00:51:29]} {[%emt
00:00:26]} Nb4 {[%clk 00:59:39]} {[%emt 00:03:43]} 12. Qe2 {[%clk 00:44:58]}
{[%emt 00:07:00]} Bd7 {[%clk 00:57:57]} {[%emt 00:02:11]} 13. Ne5 {[%clk
00:41:25]} {[%emt 00:04:05]} Bc6 {[%clk 00:55:40]} {[%emt 00:02:47]} 14. Nxc6
{[%clk 00:30:07]} {[%emt 00:11:48]} bxc6 {[%clk 00:55:47]} {[%emt 00:00:23]} 15.
Rfd1 {[%clk 00:25:44]} {[%emt 00:04:53]} a5 {[%clk 00:55:29]} {[%emt 00:00:47]}
16. Rac1 {[%clk 00:23:05]} {[%emt 00:03:10]} Ra7 {[%clk 00:50:23]} {[%emt
00:05:36]} 17. Ne4 {[%clk 00:13:59]} {[%emt 00:09:37]} Nxe4 {[%clk 00:44:46]}
{[%emt 00:06:07]} 18. Qxe4 {[%clk 00:13:56]} {[%emt 00:00:33]} Rd7 {[%clk
00:44:40]} {[%emt 00:00:35]} 19. Ba3 {[%clk 00:11:03]} {[%emt 00:03:24]} Nd5
{[%clk 00:36:37]} {[%emt 00:08:33]} 20. Bxe7 {[%clk 00:10:46]} {[%emt
00:00:46]} Nxe7 {[%clk 00:33:52]} {[%emt 00:03:15]} 21. Rd3 {[%clk 00:08:51]}
{[%emt 00:02:25]} Rd6 {[%clk 00:21:55]} {[%emt 00:12:26]} 22. Rcd1 {[%clk
00:07:21]} {[%emt 00:02:01]} Nf5 {[%clk 00:16:02]} {[%emt 00:06:23]} 23. Qe5
{[%clk 00:04:45]} {[%emt 00:03:07]} Qc7 {[%clk 00:12:48]} {[%emt 00:03:43]} 24.
d5 {[%clk 00:02:24]} {[%emt 00:02:51]} cxd5 {[%clk 00:09:59]} {[%emt 00:03:19]}
25. Bxd5 {[%clk 00:00:52]} {[%emt 00:02:02]} Qc2 {[%clk 00:05:09]} {[%emt
00:05:20]} 26. g4 {[%clk 00:00:52]} {[%emt 00:00:30]} Rxd5 {[%clk 00:05:18]}
{[%emt 00:00:21]} 27. Rxd5 {[%clk 00:00:33]} {[%emt 00:00:50]} exd5 {[%clk
00:05:35]} {[%emt 00:00:12]} 28. Rxd5 {[%clk 00:00:33]} {[%emt 00:00:30]} Nh4
{[%clk 00:04:25]} {[%emt 00:01:40]} 29. Kf1 {[%clk 00:00:32]} {[%emt 00:00:32]}
Qxb3 {[%clk 00:03:51]} {[%emt 00:01:04]} 30. Qg5 {[%clk 00:30:30]} {[%emt
00:00:32]} 0-1

[ePGN "0.1;DGT LiveChess/2.2.5"]